bitfinex/quotes_BTCUSD_20230109
["timestamp","ask_amount","ask_price","bid_price","bid_amount"]
[1673296246376,4.13755115,17247.0,17246.0,0.00434894]
[1673296247661,4.60967808,17247.0,17246.0,0.00434894]
[1673296248183,4.13732862,17247.0,17246.0,0.00434894]
[1673296248446,4.30967808,17247.0,17246.0,0.00434894]
[1673296248697,3.96523334,17247.0,17246.0,0.00434894]
[1673296249196,3.70789385,17247.0,17246.0,0.00434894]
[1673296249442,0.83103189,17246.0,17243.0,0.70174306]
[1673296249701,0.361936,17245.0,17243.0,0.70174306]
[1673296249956,0.23767789,17245.0,17243.0,0.70174306]
[1673296250295,2.4240979,17246.0,17243.0,0.70174306]
[1673296250494,2.4781009,17246.0,17243.0,0.70174306]
[1673296251497,2.4241009,17246.0,17243.0,0.70174306]
[1673296251754,0.11947678,17245.0,17243.0,0.70174306]
[1673296252007,2.4241009,17246.0,17243.0,0.70174306]
[1673296252269,2.04475489,17246.0,17243.0,0.86564695]
[1673296252543,2.04475489,17246.0,17243.0,0.70174306]
[1673296253073,0.48662816,17244.0,17243.0,0.02450407]
[1673296253327,2.24606405,17244.0,17243.0,0.02450407]
[1673296253581,2.17994765,17244.0,17243.0,0.02450407]
[1673296253842,3.05985865,17244.0,17243.0,0.02450407]
[1673296254901,3.19485865,17244.0,17243.0,0.02450407]
[1673296255170,4.0315892,17244.0,17243.0,0.02450407]
[1673296255426,4.4431892,17244.0,17243.0,0.02450407]
[1673296255692,4.48668447,17244.0,17243.0,0.02450407]
[1673296255950,4.3151813,17244.0,17243.0,0.02450407]
[1673296256191,4.4801813,17244.0,17243.0,0.02450407]
[1673296256438,4.3151813,17244.0,17243.0,0.02450407]
[1673296257166,4.1801813,17244.0,17243.0,0.02450407]
[1673296257425,4.6161813,17244.0,17243.0,0.02450407]
[1673296257675,1.26433672,17243.0,17241.0,0.02433969]
[1673296257934,2.41282416,17242.0,17241.0,0.02433969]
[1673296258203,2.69568868,17242.0,17241.0,0.02433969]
[1673296258465,2.4384919,17242.0,17241.0,0.02433969]
[1673296258723,2.28965834,17242.0,17241.0,0.02433969]
[1673296258987,2.68185512,17242.0,17241.0,0.02433969]
[1673296259263,3.02576911,17242.0,17241.0,0.02433969]
[1673296259510,2.68147683,17242.0,17241.0,0.02433969]
[1673296259770,2.85303585,17242.0,17241.0,0.02433969]
[1673296260022,3.15790198,17242.0,17241.0,0.02433969]
[1673296260280,3.18250198,17242.0,17241.0,0.02433969]
[1673296260530,3.01094984,17242.0,17241.0,0.02433969]
[1673296261045,3.18250198,17242.0,17241.0,0.02433969]
[1673296261299,4.21204619,17242.0,17241.0,0.02433969]
[1673296261546,4.54673934,17242.0,17241.0,0.02433969]
[1673296261800,4.89246247,17242.0,17241.0,0.02433969]
[1673296262089,4.54673934,17242.0,17241.0,0.02433969]
[1673296262336,4.03151894,17242.0,17241.0,0.02433969]
[1673296262586,5.50363934,17242.0,17241.0,0.02433969]
[1673296262843,0.25221237,17240.0,17239.0,0.02519391]
[1673296263125,2.72837678,17240.0,17239.0,0.02519391]
[1673296263346,2.72837678,17240.0,17235.0,0.02027917]
[1673296263347,0.01563434,17237.0,17235.0,0.02027917]
[1673296263601,0.61524823,17237.0,17235.0,0.02027917]
[1673296263876,1.19539523,17237.0,17235.0,0.02027917]
[1673296264136,1.25771734,17237.0,17235.0,0.02027917]
[1673296264420,2.30472325,17237.0,17235.0,0.02027917]
[1673296264653,3.09010114,17237.0,17235.0,0.02027917]
[1673296264926,5.2725745,17237.0,17235.0,0.02027917]
[1673296265185,5.05451687,17237.0,17235.0,0.02027917]
[1673296265435,5.91164033,17237.0,17235.0,0.02027917]
[1673296265717,5.05451687,17237.0,17235.0,0.02027917]
[1673296265969,5.31057293,17237.0,17235.0,0.02027917]
[1673296266202,2.80835344,17237.0,17236.0,0.32220889]
[1673296266462,2.50908405,17237.0,17236.0,0.158305]
[1673296266757,1.92893705,17237.0,17236.0,0.158305]
[1673296267807,2.75998946,17237.0,17236.0,0.158305]
[1673296268321,1.92893705,17237.0,17236.0,0.158305]
[1673296268836,1.04879005,17237.0,17236.0,0.158305]
[1673296270664,1.04879005,17237.0,17236.0,0.1583682]
[1673296270915,1.04879005,17237.0,17236.0,0.158305]
[1673296271672,0.91279005,17237.0,17236.0,0.158305]
[1673296272700,1.04779005,17237.0,17236.0,0.159305]
[1673296274360,0.51257034,17237.0,17236.0,0.159305]
[1673296274631,0.15063434,17237.0,17236.0,0.034305]
[1673296274997,0.15063434,17237.0,17236.0,1.02931238]
[1673296274998,0.15063434,17237.0,17236.0,0.86540849]
[1673296275221,0.15063434,17237.0,17236.0,0.97720849]
[1673296275432,0.15063434,17237.0,17236.0,0.97727169]
[1673296275651,0.15063434,17237.0,17236.0,0.86500849]
[1673296275872,0.15063434,17237.0,17236.0,1.16500849]
[1673296276104,0.01563434,17237.0,17236.0,1.16400849]
[1673296276337,0.02663434,17237.0,17236.0,2.34943369]
[1673296277003,0.02663434,17237.0,17236.0,2.94943369]
[1673296277751,0.02663434,17237.0,17236.0,3.52961469]
[1673296278403,0.02663434,17237.0,17236.0,3.52955149]
[1673296278835,0.02663434,17237.0,17236.0,2.64937049]
[1673296279509,0.02663434,17237.0,17236.0,1.15524241]
[1673296279735,0.02663434,17237.0,17236.0,1.26714241]
[1673296280427,0.26431223,17237.0,17236.0,0.025]
[1673296280649,1.66655123,17237.0,17236.0,0.025]
[1673296281092,1.96655123,17237.0,17236.0,0.025]
[1673296281349,1.87201152,17237.0,17236.0,0.025]
[1673296282004,1.86101152,17237.0,17235.0,0.02027917]
[1673296282223,1.63407552,17237.0,17236.0,0.003]
[1673296282442,1.99601152,17237.0,17236.0,0.003]
[1673296282896,2.23558782,17237.0,17236.0,0.003]
[1673296283571,2.57615852,17237.0,17236.0,0.003]
[1673296283794,1.99601152,17237.0,17236.0,0.003]
[1673296284456,1.63407552,17237.0,17236.0,0.003]
[1673296284909,1.41586452,17237.0,17236.0,0.003]
[1673296288098,1.11586452,17237.0,17236.0,0.003]
[1673296288359,0.75392852,17237.0,17236.0,0.003]
[1673296288617,0.15063434,17237.0,17236.0,0.603]
[1673296289152,0.15063434,17237.0,17236.0,1.10912716]
[1673296289640,0.15063434,17237.0,17236.0,2.26948916]
[1673296290915,0.15063434,17237.0,17236.0,1.68930816]
[1673296291183,0.15063434,17237.0,17236.0,1.10912716]
[1673296291435,0.15063434,17237.0,17236.0,0.50912716]
[1673296291702,0.51257034,17237.0,17236.0,0.50912716]
[1673296291959,0.51257034,17237.0,17236.0,0.003]
[1673296292212,0.15063434,17237.0,17236.0,0.003]
[1673296294753,0.32134767,17237.0,17236.0,0.003]
[1673296295259,1.65675239,17237.0,17236.0,0.003]
[1673296295525,1.65675239,17237.0,17235.0,0.01497684]
[1673296295526,0.3,17236.0,17235.0,0.01497684]
[1673296295783,2.25085928,17236.0,17235.0,0.01497684]
[1673296296031,2.4209178,17236.0,17235.0,0.01497684]
[1673296296285,2.25085643,17236.0,17235.0,0.01497684]
[1673296297100,1.70078366,17236.0,17235.0,0.01297684]
[1673296297359,2.31985643,17236.0,17235.0,0.01297684]
[1673296297616,1.95792043,17236.0,17235.0,0.01297684]
[1673296297877,2.31985643,17236.0,17235.0,0.01297684]
[1673296298137,1.95792043,17236.0,17235.0,0.01297684]
[1673296298910,2.31985643,17236.0,17235.0,0.01297684]
[1673296299678,2.85826181,17236.0,17235.0,0.01297684]
[1673296300185,3.45628866,17236.0,17235.0,0.01297684]
[1673296300436,3.87860689,17236.0,17235.0,0.01297684]
[1673296300689,4.20149622,17236.0,17235.0,0.01297684]
[1673296301467,3.60865075,17236.0,17235.0,0.01297684]
[1673296301752,2.85852565,17236.0,17235.0,0.01297684]
[1673296304572,2.60124231,17236.0,17235.0,0.01297684]
[1673296305087,2.85852565,17236.0,17235.0,0.01297684]
[1673296307732,3.02846975,17236.0,17235.0,0.01297684]
[1673296308341,3.26875843,17236.0,17235.0,0.01297684]
[1673296308530,5.2977445,17236.0,17235.0,0.01297684]
[1673296309067,6.25578293,17236.0,17235.0,0.01297684]
[1673296309341,5.21172358,17236.0,17235.0,0.01297684]
[1673296309597,5.21172358,17236.0,17228.0,0.712]
[1673296309598,0.70301179,17229.0,17228.0,0.6]
[1673296309866,1.30262568,17229.0,17228.0,0.6]
[1673296310138,0.94068968,17229.0,17227.0,0.80889996]
[1673296310391,0.94068968,17229.0,17227.0,0.69719996]
[1673296310652,0.94068968,17229.0,17226.0,0.84762201]
[1673296310927,0.91852464,17229.0,17226.0,0.84762201]
[1673296311451,0.53767789,17228.0,17226.0,0.73472201]
[1673296311712,0.361936,17227.0,17226.0,0.73472201]
[1673296311966,0.361936,17227.0,17226.0,0.68472201]
[1673296312526,0.361936,17227.0,17225.0,0.00620899]
[1673296312527,0.91832858,17227.0,17225.0,0.00620899]
[1673296312792,0.361936,17226.0,17225.0,0.00620899]
[1673296313585,2.874153,17226.0,17225.0,0.00620899]
[1673296313856,3.07467981,17226.0,17225.0,0.00620899]
[1673296314115,2.874153,17226.0,17225.0,0.00620899]
[1673296314369,2.874153,17226.0,17225.0,0.68033132]
[1673296314370,1.6477,17226.0,17225.0,0.68033132]
[1673296314916,0.016,17226.0,17225.0,0.68033132]
[1673296315468,0.016,17226.0,17225.0,0.79233132]
[1673296316000,0.016,17226.0,17225.0,1.09233132]
[1673296316465,0.016,17226.0,17225.0,1.09239456]
[1673296316701,0.016,17226.0,17225.0,3.25349656]
[1673296316953,0.016,17226.0,17225.0,3.55349656]
[1673296317723,0.68084675,17229.0,17226.0,0.90924232]
[1673296317992,0.68084675,17229.0,17228.0,0.1119]
[1673296318267,0.68084675,17229.0,17228.0,1.4972]
[1673296318562,0.68084675,17229.0,17228.0,1.7972]
[1673296319077,0.69384675,17229.0,17228.0,1.7972]
[1673296319344,0.68084675,17229.0,17228.0,1.7972]
[1673296319599,0.68084675,17229.0,17228.0,1.7974]
[1673296319862,0.91852464,17229.0,17228.0,1.4974]
[1673296320144,0.68084675,17229.0,17228.0,0.80675]
[1673296320425,0.73184675,17229.0,17228.0,1.4629]
[1673296321219,0.73184675,17229.0,17228.0,1.4599]
[1673296321816,0.73184675,17229.0,17228.0,1.1599]
[1673296322062,0.73184675,17229.0,17228.0,0.57945]
[1673296322308,0.73184675,17229.0,17228.0,0.002]
[1673296327138,1.03184675,17229.0,17228.0,0.002]
[1673296327383,1.39360447,17229.0,17228.0,0.002]
[1673296327639,1.03166847,17229.0,17228.0,0.002]
[1673296328408,2.09894258,17229.0,17228.0,0.002]
[1673296328661,3.28421414,17229.0,17228.0,0.002]
[1673296328926,5.41793014,17229.0,17228.0,0.002]
[1673296329205,4.92447458,17229.0,17228.0,0.002]
[1673296329459,4.23265858,17229.0,17228.0,0.002]
[1673296330250,3.65224258,17229.0,17228.0,0.002]
[1673296331302,4.23265858,17229.0,17228.0,0.002]
[1673296331585,4.81307458,17229.0,17228.0,0.002]
[1673296334141,0.00286517,17227.0,17225.0,1.09399663]
[1673296334424,0.361936,17226.0,17225.0,1.09399663]
[1673296334650,0.23767789,17226.0,17225.0,0.00620899]
[1673296334908,0.00286517,17227.0,17225.0,0.00620899]
[1673296335165,0.3,17226.0,17225.0,0.00620899]
[1673296335441,0.3,17226.0,17225.0,0.01820899]
[1673296337319,0.3,17226.0,17225.0,0.00620899]
[1673296337580,0.315,17226.0,17225.0,0.01820899]
[1673296338580,1.52747069,17226.0,17225.0,0.01820899]
[1673296338581,2.02092625,17226.0,17225.0,0.01820899]
[1673296338792,2.59638139,17226.0,17225.0,0.01820899]
[1673296339476,0.3,17225.0,17222.0,0.60446543]
[1673296339749,1.61168545,17225.0,17222.0,0.60446543]
[1673296340514,1.95455856,17225.0,17222.0,0.02383243]
[1673296340774,0.86597622,17224.0,17221.0,1.79279971]
[1673296341288,1.59540831,17224.0,17221.0,1.79279971]
[1673296341555,2.17599331,17224.0,17221.0,0.580668]
[1673296341816,2.17599331,17224.0,17220.0,0.02416504]
[1673296342075,0.4917542,17223.0,17220.0,0.02416504]
[1673296342371,1.31005709,17223.0,17220.0,0.02416504]
[1673296342585,0.3,17222.0,17220.0,0.02416504]
[1673296343619,0.880659,17222.0,17220.0,0.02416504]
[1673296343861,0.887659,17222.0,17220.0,0.02416504]
[1673296344920,0.887659,17222.0,17217.0,1.46566382]
[1673296344921,0.23767789,17221.0,17217.0,1.46566382]
[1673296345151,1.03659667,17220.0,17218.0,0.71609038]
[1673296345418,1.03659667,17220.0,17218.0,0.70109038]
[1673296345419,0.361936,17219.0,17218.0,0.70109038]
[1673296345672,1.24699895,17221.0,17218.0,0.70109038]
[1673296345944,0.007,17222.0,17219.0,0.17896715]
[1673296346240,2.30856219,17223.0,17221.0,0.1115]
[1673296346458,0.53314789,17222.0,17221.0,0.29040389]
[1673296346711,0.53314789,17222.0,17219.0,0.580727]
[1673296346712,0.69467006,17221.0,17219.0,0.580727]
[1673296346965,0.94834795,17221.0,17219.0,0.580727]
[1673296347216,0.69467006,17221.0,17219.0,0.58079026]
[1673296347721,0.69467006,17221.0,17219.0,1.16148]
[1673296347980,0.007,17221.0,17220.0,0.2]
[1673296348234,0.007,17221.0,17220.0,0.78075325]
[1673296348496,0.007,17221.0,17220.0,2.24708733]
[1673296349266,6e-05,17222.0,17220.0,2.19503229]
[1673296349519,0.059,17221.0,17220.0,1.16147325]
[1673296349775,0.059,17221.0,17220.0,1.16134]
[1673296350041,0.53207532,17222.0,17220.0,1.46134]
[1673296350555,0.58507532,17222.0,17220.0,1.16234]
[1673296350807,0.53207532,17222.0,17220.0,1.16134]
[1673296351064,0.053,17221.0,17220.0,1.16234]
[1673296352122,0.53207532,17222.0,17220.0,1.46134]
[1673296352376,0.53207532,17222.0,17220.0,1.16134]
[1673296352932,0.053,17221.0,17220.0,1.16234]
[1673296353178,0.53207532,17222.0,17220.0,1.16134]
[1673296353452,0.58507532,17222.0,17220.0,1.16234]
[1673296353752,0.58507532,17222.0,17220.0,0.58172]
[1673296354231,0.82275321,17222.0,17220.0,0.001]
[1673296354234,0.67256419,17221.0,17220.0,0.001]
[1673296354517,0.3,17220.0,17218.0,0.481757]
[1673296354768,0.53767789,17220.0,17218.0,0.481757]
[1673296355023,0.3,17220.0,17218.0,0.481757]
[1673296355324,0.53767789,17220.0,17218.0,0.481757]
[1673296355570,0.53767789,17220.0,17217.0,0.59054671]
[1673296356090,0.55067789,17220.0,17218.0,0.008]
[1673296356349,0.313,17220.0,17218.0,0.008]
[1673296356626,0.3,17220.0,17217.0,0.59054671]
[1673296356880,0.53136781,17219.0,17217.0,0.59054671]
[1673296357135,0.53136781,17219.0,17217.0,0.59854671]
[1673296357639,0.7690457,17219.0,17217.0,0.59854671]
[1673296357959,0.7690457,17219.0,17217.0,0.00972571]
[1673296357960,0.63897238,17219.0,17217.0,0.00972571]
[1673296358201,0.63897238,17219.0,17218.0,0.001]
[1673296358202,0.53136781,17219.0,17218.0,0.001]
[1673296358444,0.89330381,17219.0,17217.0,0.00972571]
[1673296358706,0.361936,17218.0,17217.0,0.01772571]
[1673296358980,1.64991243,17218.0,17217.0,0.01772571]
[1673296359256,3.11148643,17218.0,17217.0,0.01772571]
[1673296359517,0.03292302,17216.0,17215.0,0.05485394]
[1673296359774,0.39485902,17216.0,17215.0,0.05485394]
[1673296360030,0.03292302,17216.0,17215.0,0.05485394]
[1673296360284,0.03292302,17216.0,17215.0,0.05600531]
[1673296360754,0.03292302,17216.0,17215.0,0.74879331]
[1673296360758,0.03292302,17216.0,17215.0,1.2913895]
[1673296361006,0.03292302,17216.0,17215.0,1.5913895]
[1673296361255,0.15992302,17216.0,17215.0,1.5923895]
[1673296361515,0.03292302,17216.0,17215.0,1.5913895]
[1673296361766,0.04592302,17216.0,17215.0,1.5993895]
[1673296362023,0.03292302,17216.0,17215.0,1.5913895]
[1673296362280,0.15992302,17216.0,17215.0,1.5923895]
[1673296362534,0.15992302,17216.0,17215.0,2.0603775]
[1673296362816,0.16698302,17216.0,17215.0,0.06285394]
[1673296363860,0.72113412,17216.0,17215.0,0.06285394]
[1673296365932,0.16692302,17216.0,17215.0,0.06285394]
[1673296367713,0.46692302,17216.0,17215.0,0.06285394]
[1673296367973,0.82885902,17216.0,17215.0,0.06285394]
[1673296368478,2.08535289,17216.0,17215.0,0.06285394]
[1673296368735,3.02814389,17216.0,17215.0,0.06285394]
[1673296368989,3.75728828,17216.0,17215.0,0.06285394]
[1673296369762,3.75728828,17216.0,17212.0,0.580985]
[1673296369763,0.8142322,17215.0,17212.0,0.580985]
[1673296370014,1.53305924,17215.0,17212.0,0.580966]
[1673296370271,1.53305924,17215.0,17212.0,1.161933]
[1673296370528,0.1114,17213.0,17211.0,0.02557431]
[1673296370819,2.23930302,17215.0,17212.0,0.60264526]
[1673296370820,0.83984613,17215.0,17212.0,0.60264526]
[1673296371024,0.89690613,17215.0,17213.0,0.580956]
[1673296371272,0.83990613,17215.0,17213.0,0.580956]
[1673296371525,0.01837935,17214.0,17213.0,0.580956]
[1673296372560,0.01837935,17214.0,17212.0,1.161932]
[1673296372561,1.01813655,17214.0,17212.0,1.161932]
[1673296372833,1.34880543,17214.0,17211.0,0.02557431]
[1673296373617,1.47980543,17214.0,17211.0,0.02557431]
[1673296373620,0.40741215,17213.0,17211.0,0.02557431]
[1673296373871,0.70684496,17213.0,17211.0,0.02557431]
[1673296374392,0.50830611,17212.0,17211.0,0.02557431]
[1673296374656,0.91462816,17212.0,17211.0,0.02557431]
[1673296375162,0.50830611,17212.0,17211.0,0.02557431]
[1673296376182,0.63930611,17212.0,17211.0,0.02557431]
[1673296376446,0.131,17212.0,17211.0,1.27153568]
[1673296376717,0.131,17212.0,17211.0,1.85255868]
[1673296376972,0.131,17212.0,17211.0,1.45283168]
[1673296377772,0.131,17212.0,17211.0,1.75283168]
[1673296378741,0.36867789,17212.0,17211.0,0.78789331]
[1673296378743,0.96032101,17212.0,17210.0,0.006]
[1673296378978,0.131,17212.0,17210.0,1.85412436]
[1673296379225,0.131,17212.0,17210.0,2.36757747]
[1673296379226,0.13106,17212.0,17210.0,2.36757747]
[1673296379468,0.13106,17212.0,17211.0,0.93994801]
[1673296379709,0.13106,17212.0,17211.0,2.68301701]
[1673296379710,6e-05,17212.0,17211.0,2.68301701]
[1673296379971,0.05706,17212.0,17211.0,2.68301701]
[1673296380258,6e-05,17212.0,17211.0,2.68301701]
[1673296380518,0.13106,17212.0,17211.0,2.68301701]
[1673296381256,0.13106,17212.0,17211.0,4.3856209]
[1673296381492,0.13106,17212.0,17211.0,4.74404743]
[1673296381740,0.13106,17212.0,17211.0,4.25798621]
[1673296382225,6e-05,17212.0,17211.0,4.25798621]
[1673296382489,6e-05,17212.0,17211.0,4.20671701]
[1673296382754,0.23773789,17212.0,17211.0,2.266769]
[1673296383006,6e-05,17212.0,17211.0,1.162046]
[1673296383268,0.01406,17212.0,17211.0,1.176046]
[1673296383552,6e-05,17212.0,17211.0,1.162046]
[1673296383798,0.01506,17212.0,17211.0,1.476046]
[1673296384011,6e-05,17212.0,17211.0,1.462046]
[1673296384252,0.005,17212.0,17211.0,1.474046]
[1673296384753,0.005,17212.0,17211.0,2.53210423]
[1673296385280,0.005,17212.0,17211.0,2.23210423]
[1673296385522,0.005,17212.0,17211.0,3.22532723]
[1673296385779,0.005,17212.0,17211.0,4.22532723]
[1673296386313,0.01843935,17214.0,17212.0,0.81673726]
[1673296386559,6e-05,17214.0,17213.0,2.266368]
[1673296386844,6e-05,17214.0,17213.0,2.24798865]
[1673296387116,0.00021,17214.0,17213.0,2.23798865]
[1673296387361,0.00021,17214.0,17213.0,3.14987848]
[1673296387892,0.00021,17214.0,17213.0,4.15005042]
[1673296388397,6e-05,17214.0,17213.0,5.5211632]
[1673296388694,1.7686572,17221.0,17214.0,0.83427998]
[1673296388695,0.57265679,17219.0,17214.0,0.83427998]
[1673296388947,0.40830304,17221.0,17218.0,0.1118]
[1673296388948,1.4916,17221.0,17218.0,0.1118]
[1673296389201,1.4916,17221.0,17219.0,1.34040989]
[1673296389459,1.4916,17221.0,17220.0,0.17890389]
[1673296389724,2.11245866,17221.0,17220.0,0.17890389]
[1673296389997,2.11245866,17221.0,17219.0,1.161482]
[1673296390267,2.11245866,17221.0,17220.0,1.27334]
[1673296390268,1.4916,17221.0,17220.0,1.27334]
[1673296390538,0.3020483,17222.0,17220.0,1.83933691]
[1673296390539,0.0020483,17222.0,17220.0,1.83933691]
[1673296390797,0.0020483,17222.0,17221.0,0.1115]
[1673296391057,0.0020483,17222.0,17221.0,1.272872]
[1673296391603,0.0020483,17222.0,17221.0,1.572872]
[1673296391852,0.0760483,17222.0,17221.0,1.862558]
[1673296392666,0.0760483,17222.0,17221.0,2.162558]
[1673296392936,0.0760483,17222.0,17221.0,2.81945101]
[1673296393197,0.0760483,17222.0,17221.0,2.93165101]
[1673296394446,0.0760483,17222.0,17221.0,5.27406406]
[1673296394717,0.0760483,17222.0,17221.0,2.89615101]
[1673296394974,0.0760483,17222.0,17221.0,1.170372]
[1673296395488,0.0760483,17222.0,17221.0,1.150372]
[1673296395988,0.0760483,17222.0,17221.0,2.25043197]
[1673296396240,0.0760483,17222.0,17221.0,2.85043197]
[1673296396780,0.0760483,17222.0,17221.0,2.85026011]
[1673296399567,0.0760483,17222.0,17221.0,2.26957411]
[1673296399824,0.0760483,17222.0,17221.0,1.66957411]
[1673296400621,0.0760483,17222.0,17221.0,2.25026011]
[1673296400881,0.0760483,17222.0,17221.0,2.55026011]
[1673296401138,0.0760483,17222.0,17221.0,4.03422549]
[1673296401392,0.0760483,17222.0,17221.0,3.55026011]
[1673296401700,0.0760483,17222.0,17221.0,3.15687411]
[1673296402732,0.0760483,17222.0,17221.0,4.43478716]
[1673296404363,0.0020483,17222.0,17221.0,4.42578716]
[1673296404619,0.0080483,17222.0,17221.0,4.54078716]
[1673296404878,0.0020483,17222.0,17221.0,4.42578716]
[1673296405136,0.0080483,17222.0,17221.0,4.54078716]
[1673296405395,0.0080483,17222.0,17221.0,4.79107105]
[1673296405733,0.0080483,17222.0,17221.0,5.42696532]
[1673296405988,3e-07,17222.0,17221.0,14.42696532]
[1673296406237,6e-05,17224.0,17222.0,0.58589388]
[1673296406489,0.00182449,17225.0,17223.0,6.46667505]
[1673296406734,0.00182449,17225.0,17224.0,1.26671305]
[1673296406980,0.00182449,17225.0,17224.0,3.00846805]
[1673296407231,0.00182449,17225.0,17224.0,3.30846805]
[1673296407724,0.00682449,17225.0,17224.0,3.30863988]
[1673296408003,0.00682449,17225.0,17224.0,3.35609002]
[1673296408274,0.00882449,17225.0,17224.0,3.08809002]
[1673296408781,0.00182449,17225.0,17224.0,3.05609002]
[1673296409025,0.00682449,17225.0,17224.0,3.6610554]
[1673296409762,0.00682449,17225.0,17224.0,3.9610554]
[1673296410020,0.00182449,17225.0,17224.0,3.8400554]
[1673296410279,0.00382449,17225.0,17224.0,3.8720554]
[1673296410533,0.00382449,17225.0,17224.0,4.22429595]
[1673296410779,0.00382449,17225.0,17224.0,3.65043988]
[1673296410780,0.00882449,17225.0,17224.0,3.65043988]
[1673296411036,0.0022995,17228.0,17225.0,0.53825855]
[1673296411288,0.0022995,17228.0,17227.0,0.7882]
[1673296411533,0.0022995,17228.0,17227.0,1.949168]
[1673296412289,0.0042995,17228.0,17227.0,2.376452]
[1673296412786,0.0042995,17228.0,17227.0,2.676452]
[1673296413037,0.0041495,17228.0,17227.0,2.376452]
[1673296415505,0.56516441,17228.0,17227.0,1.195968]
[1673296415762,0.56516441,17228.0,17225.0,1.180538]
[1673296416002,0.8028423,17228.0,17225.0,1.180522]
[1673296416544,0.8028423,17228.0,17225.0,1.761065]
[1673296416788,0.8028423,17228.0,17225.0,1.161065]
[1673296416789,0.8008423,17228.0,17225.0,1.161065]
[1673296417032,0.55516441,17228.0,17226.0,0.00035706]
[1673296417312,0.3,17227.0,17225.0,1.180534]
[1673296417558,0.3,17227.0,17225.0,0.585534]
[1673296417807,0.3,17227.0,17225.0,1.09713145]
[1673296418055,0.053,17228.0,17226.0,0.54800597]
[1673296418310,0.4888,17229.0,17226.0,0.54800597]
[1673296418311,1.18061277,17229.0,17226.0,0.54800597]
[1673296418554,1.18061277,17229.0,17226.0,1.30741586]
[1673296418555,0.053,17227.0,17226.0,1.30741586]
[1673296418813,0.053,17227.0,17226.0,2.00902897]
[1673296419091,0.053,17227.0,17226.0,1.70902897]
[1673296419625,0.99181277,17229.0,17226.0,1.70902897]
[1673296419839,0.99181277,17229.0,17226.0,1.88793286]
[1673296420086,0.99181277,17229.0,17226.0,1.88573286]
[1673296420332,0.99181277,17229.0,17226.0,1.70682897]
[1673296420838,1.08281277,17229.0,17226.0,1.71482897]
[1673296421827,1.66323177,17229.0,17226.0,1.71482897]
[1673296422820,1.08281277,17229.0,17226.0,1.71482897]
[1673296423315,1.08281277,17229.0,17226.0,2.31482897]
[1673296423561,1.08281277,17229.0,17226.0,2.49373286]
[1673296423806,1.08281277,17229.0,17226.0,3.07424986]
[1673296424047,1.08281277,17229.0,17226.0,2.89534597]
[1673296424551,1.08281277,17229.0,17226.0,3.07424986]
[1673296424849,1.08281277,17229.0,17228.0,0.6]
[1673296425100,1.08281277,17229.0,17228.0,1.18045]
[1673296425343,1.44474877,17229.0,17228.0,1.18045]
[1673296426080,1.35374877,17229.0,17228.0,1.18045]
[1673296426324,1.44474877,17229.0,17228.0,0.608]
[1673296427546,1.14474877,17229.0,17228.0,0.608]
[1673296427791,1.14474877,17229.0,17228.0,1.18845]
[1673296427792,0.452936,17229.0,17228.0,1.18845]
[1673296428038,0.091,17229.0,17228.0,1.18845]
[1673296428284,0.091,17229.0,17228.0,1.7689]
[1673296428533,0.091,17229.0,17228.0,2.87760544]
[1673296437047,0.091,17229.0,17228.0,2.29715544]
[1673296437575,0.091,17229.0,17228.0,1.1689]
[1673296437809,0.091,17229.0,17228.0,1.7689]
[1673296438326,0.091,17229.0,17228.0,1.1689]
[1673296438592,0.091,17229.0,17228.0,1.7689]
[1673296439103,0.091,17229.0,17228.0,1.68138701]
[1673296439366,0.86497367,17229.0,17226.0,0.6]
[1673296439620,0.86497367,17229.0,17226.0,1.76099]
[1673296440153,1.16497367,17229.0,17226.0,2.38102494]
[1673296440409,0.92729578,17229.0,17226.0,2.38102494]
[1673296440670,1.24548855,17229.0,17226.0,2.38102494]
[1673296440928,0.83629578,17229.0,17226.0,2.38102494]
[1673296441195,0.3,17228.0,17227.0,0.00019405]
[1673296441482,0.3,17228.0,17226.0,1.80052894]
[1673296441720,0.3,17228.0,17227.0,0.580484]
[1673296441978,0.3,17228.0,17227.0,0.58067805]
[1673296442499,0.3,17228.0,17227.0,0.580484]
[1673296442739,0.399,17228.0,17227.0,0.580484]
[1673296442995,0.3,17228.0,17227.0,0.58067805]
[1673296443249,0.399,17228.0,17227.0,0.00819405]
[1673296443501,0.399,17228.0,17227.0,0.008]
[1673296445034,0.399,17228.0,17227.0,0.00819405]
[1673296445035,0.099,17228.0,17227.0,0.00819405]
[1673296445538,0.099,17228.0,17227.0,1.16916205]
[1673296447091,0.099,17228.0,17227.0,2.04964605]
[1673296447347,0.099,17228.0,17227.0,1.74964605]
[1673296447606,0.099,17228.0,17227.0,2.84100231]
[1673296447865,0.099,17228.0,17227.0,3.27931416]
[1673296448125,0.099,17228.0,17227.0,3.10154214]
[1673296448635,0.099,17228.0,17227.0,2.84100231]
[1673296449168,0.099,17228.0,17227.0,3.10154214]
[1673296449405,0.099,17228.0,17227.0,3.26358862]
[1673296449927,0.099,17228.0,17227.0,3.92111434]
[1673296450250,0.099,17228.0,17227.0,3.4369343]
[1673296450426,0.099,17228.0,17227.0,3.61073518]
[1673296450681,0.099,17228.0,17227.0,3.26378847]
[1673296450941,0.099,17228.0,17227.0,4.45341618]
[1673296451190,0.099,17228.0,17227.0,4.82656201]
[1673296451482,0.099,17228.0,17227.0,4.99973213]
[1673296452766,0.099,17228.0,17227.0,4.82663091]
[1673296453047,0.08910001,17228.0,17227.0,4.65278542]
[1673296453533,0.08910001,17228.0,17227.0,3.76616239]
[1673296453800,0.08910001,17228.0,17227.0,5.24454495]
[1673296454324,0.00425975,17231.0,17227.0,5.24454495]
[1673296454325,0.00425975,17231.0,17227.0,4.77886273]
[1673296454574,0.00425975,17231.0,17230.0,2.80613672]
[1673296454575,0.00410975,17231.0,17230.0,2.80613672]
[1673296454843,0.00410975,17234.0,17230.0,4.33683573]
[1673296455104,0.00410975,17234.0,17233.0,1.9123]
[1673296455428,0.00410975,17234.0,17233.0,4.89621368]
[1673296455623,0.00410975,17234.0,17233.0,4.86973096]
[1673296455884,0.00278856,17235.0,17233.0,5.16973096]
[1673296456148,0.00278856,17235.0,17234.0,1.76194895]
[1673296456406,0.00278856,17235.0,17234.0,2.92244495]
[1673296456695,0.00278856,17235.0,17234.0,3.12244495]
[1673296457180,0.00278856,17235.0,17234.0,3.68907738]
[1673296457435,0.00278856,17235.0,17234.0,3.51555962]
[1673296458470,0.00278856,17235.0,17234.0,3.656438]